Cogmind - Beta 14 @@@ ROGUE MODE // 2024.08.16 @ 02:31:30 Player: Cereal Killer Result: Destroyed by S-27 Virus with Autogun Performance ------------- Evolutions (5) 2500 Regions Visited (5) 1000 Robots Destroyed (110) 550 Value Destroyed (4461) 4461 Prototype IDs (11) 220 Alien Tech Used (0) 0 Bonus (2859) 2859 TOTAL SCORE: 11590 Bonus ------- High Alert Combat Kills 2307 Follower Combat Kills 271 Registered with UFD 300 Friendly Fire -19 Cogmind --------- Core Integrity 0/1000 Matter 40/300 Energy 81/100 System Corruption 13% Temperature Cool (0) Movement Core (50) Location -5/Factory Parts ------- > --- POWER (2) -------- (None) > --- PROPULSION (3) --- (None) > --- UTILITY (8) ------ Advanced Signal Interpreter Core Analyzer > --- WEAPON (4) ------- (None) > --- INVENTORY (5) ---- Overtuned Scrapsphere Precision Matter Filter A0-MCA's Component Scanner Tiamat Missile Launcher DRS Beacon (Ready) Peak State ------------ > --- POWER ------------ Angular Momentum Engine Enhanced Fission Core > --- PROPULSION ------- Improved Medium Treads Improved Medium Treads Overtuned Medium Treads > --- UTILITY ---------- Scrap Suit Advanced Cooling System Large Storage Unit Advanced Signal Interpreter Core Analyzer Precision Matter Filter Improved Shield Generator > --- WEAPON ----------- Overtuned Beamcaster Cooled Plasma Cannon Overtuned Coil Gun Tiamat Missile Launcher > --- INVENTORY -------- Light Antimatter Reactor Overtuned Scrapsphere Improved Thermal Shield Improved Shield Generator A0-MCA's Component Scanner Improved System Restoration Module Heavy Plasma Cannon Overtuned Barrage Gun Overtuned Coil Gun Enhanced Gauss Cannon CPS Tube CPS Tube DRS Beacon Large Botcube [Rating: 97] Favorites ----------- Power Angular Momentum Engine Engine Angular Momentum Engine Power Core Enhanced Fission Core Reactor Light Antimatter Reactor Propulsion Light Treads Treads Light Treads Wheel Subdweller Monowheel Hover Unit Antigrav System Utility Large Storage Unit Device Scrap Suit Storage Large Storage Unit Processor Core Analyzer Protection Propulsion Shielding Weapon Assault Rifle Energy Gun Overtuned Beamcaster Energy Cannon Heavy Plasma Cannon Ballistic Gun Assault Rifle Ballistic Cannon Battle Cannon Launcher Tiamat Missile Launcher Special Weapon Enhanced Flamer Impact Weapon Makeshift Hammer Slashing Weapon Plasma Sword Build | -11 -10 -10 -7 -7 -5 ------- Run | Yrd Mat Sub Rec Scr Fac Slots Evolved 10 | . . . . . 10 Power 1 | . . . . . 1 Propulsion 1 | . . . . . 1 Utility 6 | . . . . . 6 Weapon 2 | . . . . . 2 Parts Attached 119 | 6 8 30 5 7 63 Power 15 | 1 . 4 2 1 7 Engine 10 | 1 . 4 2 1 2 Core 3 | . . . . . 3 Reactor 2 | . . . . . 2 Propulsion 15 | 2 1 4 1 1 6 Treads 11 | 2 1 1 1 1 5 Leg . | . . . . . . Wheel 3 | . . 3 . . . Hover 1 | . . . . . 1 Flight . | . . . . . . Utility 32 | 1 3 3 . 3 22 Device 21 | . 1 2 . 2 16 Storage 2 | 1 1 . . . . Processor 2 | . . . . 1 1 Hackware . | . . . . . . Protection 7 | . 1 1 . . 5 Artifact . | . . . . . . Weapon 57 | 2 4 19 2 2 28 Energy Gun 11 | . . 4 . . 7 Energy Cannon 6 | . . 1 . 1 4 Ballistic Gun 20 | 2 4 7 1 . 6 Ballistic Cannon 5 | . . 2 1 . 2 Launcher 4 | . . . . . 4 Special Weapon 6 | . . 4 . . 2 Impact Weapon 2 | . . 1 . 1 . Slashing Weapon 3 | . . . . . 3 Piercing Weapon . | . . . . . . Special Melee Weapon . | . . . . . . Unidentified Prototypes 5 | . . . . . 5 Parts Lost 42 | . 1 7 1 . 33 Power 8 | . . 1 . . 7 Propulsion 9 | . . 2 . . 7 Utility 11 | . . 1 1 . 9 Weapon 14 | . 1 3 . . 10 Highest Loss Streak 18 | . 1 2 1 . 18 To Critical Strikes . | . . . . . . Average Slot Usage (%) 86 | . 98 94 96 68 86 Engine 10 | . 14 13 14 12 3 Core 1 | . . . . . 4 Treads 20 | . 27 24 9 24 14 Wheel 3 | . . 3 18 3 . Device 10 | . 7 2 12 13 18 Storage 11 | . 14 14 14 14 4 Processor 2 | . . . . . 10 Protection 3 | . 5 6 . . 2 Energy Gun 2 | . . 5 . . 2 Energy Cannon 1 | . . 1 . . 2 Ballistic Gun 10 | . 27 15 4 . 10 Ballistic Cannon 2 | . . 1 21 . . Special Weapon 1 | . . 3 . . . Peak Build Rating 97 | 6 8 16 17 23 97 Average Rating 31 | 4 7 11 15 16 84 On Entrance 10 | . 6 8 15 9 23 Naked Turns . | . . . . . . Heaviest Build 93 | 13 30 38 33 41 93 Greatest Support 85 | 40 40 40 40 48 85 Greatest Overweight (x) 9 | . . 1 1 1 9 Average Overweight (x) . | . . . . . . Largest Inventory Capacity 15 | 8 15 15 15 15 15 Average Capacity 14 | 7 14 15 15 15 14 Most Carried 15 | 5 15 15 15 15 15 Average Carried 13 | 2 8 14 14 14 13 Final Capacity 15 | 8 15 15 15 15 5 Final Carried 15 | 2 15 15 15 15 5 Class Distribution -------------------- 45% | Mutant 29% | Commander-Mutant 18% | Scrapper Dominant Class ---------------- Mutant | -10/Materials Mutant | -10/Subcaves Mutant | -7/Recycling Commander-Mutant | -7/Scraptown Scrapper | -5/Factory Resources | -11 -10 -10 -7 -7 -5 ----------- Run | Yrd Mat Sub Rec Scr Fac Matter Collected 3253 | 268 310 712 193 112 1658 Remotely . | . . . . . . Salvage Created 4291 | 55 371 514 150 . 3201 Parts 232 | . 32 36 1 . 163 Haulers Intercepted 5 | . 2 . . . 3 Recyclers Shooed 3 | . 1 . . . 2 Parts Field Recycled . | . . . . . . Retrieved Matter . | . . . . . . Parts Self-Destructed 13 | . . 13 . . . Prevented . | . . . . . . Kills | -11 -10 -10 -7 -7 -5 ------- Run | Yrd Mat Sub Rec Scr Fac Combat Hostiles Destroyed 81 | . 8 10 4 . 59 Melee 1 | . . . . . 1 Guns 44 | . 8 9 . . 27 Cannons 19 | . . 1 4 . 14 AOE 16 | . . . . . 16 Classes Destroyed 19 | 1 5 1 2 . 10 Worker 4 | . . . . . 4 Builder 8 | . . . . . 8 Hauler 5 | . 2 . . . 3 Recycler 2 | 1 . . . . 1 Mechanic 1 | . . . . . 1 Operator 3 | . 2 . . . 1 Watcher 6 | . 3 . . . 3 Swarmer 15 | . 6 3 . . 6 Saboteur 3 | . . . . . 3 Grunt 28 | . 2 . 2 . 24 Brawler 2 | . . . . . 2 Duelist 4 | . . . 1 . 3 Protector 1 | . . . . . 1 Sentry 5 | . . . 1 . 4 Specialist 3 | . . . . . 3 Hunter 5 | . . . . . 5 Programmer 7 | . . . . . 7 Heavy 1 | . . . . . 1 Subdweller 7 | . . 7 . . . Best Kill Streak 10 | 1 5 3 3 . 10 Combat Bots Only 9 | . 4 3 3 . 9 Max Kills in Single Turn 4 | 1 1 1 1 . 4 Gunslinging . | . . . . . . Exploded 2 | . . . . . 2 Melee 1 | . . . . . 1 Uniques/NPCs Destroyed . | . . . . . . Combat | -11 -10 -10 -7 -7 -5 -------- Run | Yrd Mat Sub Rec Scr Fac Hostile Shots Fired 591 | . 48 67 37 . 439 Missed 143 | . 7 17 12 . 107 Damage Taken 7788 | . 358 824 210 . 6396 Core 1204 | . 21 159 18 . 1006 Absorbed by Shields 403 | . . . . . 403 Redirected to Shielding 52 | . . 52 . . . Ignored by Resistances 136 | . . . . . 136 Regen/Repaired (Parts) 213 | . . . . . 213 Core Remaining (%) 60 | 100 . . . 20 . Volleys Fired 284 | 4 44 79 12 . 145 Largest 4 | 2 2 2 2 . 4 Hottest 287 | 40 40 140 78 . 287 Shots Fired 665 | 8 88 136 24 . 409 Gun 477 | 8 88 106 3 . 272 Cannon 149 | . . 11 21 . 117 Launcher 17 | . . . . . 17 Special 22 | . . 19 . . 3 Kinetic 458 | 8 88 69 24 . 269 Thermal 166 | . . 66 . . 100 Explosive 17 | . . . . . 17 Electromagnetic 21 | . . 1 . . 20 Robot Hit Streak 15 | 5 5 15 9 . 11 Robot Miss Streak 6 | 2 6 2 2 . 6 Penetration Max 2 | . . . . . 2 Secondary Targets 3 | . 1 . . . 2 Max Gunslinging Chain 1 | . 1 . . . 1 Shots Hit Robots 377 | 6 45 79 20 . 227 Core Hits 213 | 2 23 25 10 . 153 Critical Kills 7 | . 1 . . . 6 Critical Parts Destroyed 6 | . . . . . 6 Critical Strikes 22 | . 1 2 . . 19 Burn 4 | . . 1 . . 3 Meltdown 1 | . . . . . 1 Destroy 13 | . 1 1 . . 11 Blast 4 | . . . . . 4 Melee Attacks 7 | . . 2 . . 5 Impact 2 | . . 2 . . . Slashing 5 | . . . . . 5 Piercing . | . . . . . . Sneak Attacks . | . . . . . . Combat Hostiles . | . . . . . . Follow-up Attacks . | . . . . . . Damage Inflicted 13947 | 54 529 1347 443 . 11574 Guns 6269 | 54 529 1182 65 . 4439 Cannons 2466 | . . 121 378 . 1967 Explosions 5038 | . . . . . 5038 Melee 130 | . . . . . 130 Ramming . | . . . . . . Kinetic 6182 | 54 529 576 443 . 4580 Thermal 3953 | . . 762 . . 3191 Explosive 3503 | . . . . . 3503 Electromagnetic 179 | . . 9 . . 170 Impact . | . . . . . . Slashing 130 | . . . . . 130 Piercing . | . . . . . . Highest Corruption 13 | . . . 1 1 13 Average Corruption 1 | . . . 1 1 2 Corruption Purged 2 | . . . . . 2 Corruption Blocked . | . . . . . . Effects 47 | . . . 1 20 26 Message Errors 15 | . . . . 5 10 Matter Fused 9 | . . . . 5 4 Heat Flow Errors 6 | . . . 1 4 1 Energy Discharges 3 | . . . . 3 . Parts Rejected 1 | . . . . . 1 Parts Fused 1 | . . . . . 1 Data Loss (minor) 3 | . . . . 2 1 Data Loss (major) 3 | . . . . 1 2 Misfires 2 | . . . . . 2 Weapon Failures 4 | . . . . . 4 Overload Shots . | . . . . . . Overflow Damage 375 | . . 9 2 . 364 Projectiles 57 | . . 9 2 . 46 Explosions 318 | . . . . . 318 Melee . | . . . . . . Knockbacks 4 | . . . . . 4 Impact . | . . . . . . Kinetic 3 | . . . . . 3 Secondary 1 | . . . . . 1 Self-Inflicted Damage 300 | . . . . . 300 Shots 7 | . . . . . 7 Rammed . | . . . . . . Targets Rammed . | . . . . . . Kicked . | . . . . . . Crushed . | . . . . . . Highest Temperature 541 | . 6 72 219 255 541 Average Temperature 95 | . 6 23 71 121 102 Received Heat Transfer 1059 | . 54 63 66 . 876 Effects 3 | . . . . 1 2 Shutdowns 1 | . . . . . 1 Energy Bleed 1 | . . . . 1 . Damage (minor) 1 | . . . . . 1 Siege Activations . | . . . . . . Robots Corrupted . | . . . . . . Combat Hostiles . | . . . . . . Parts Fried . | . . . . . . Impact Corruptions . | . . . . . . Robots Melted 1 | . . . . . 1 Combat Hostiles 1 | . . . . . 1 Parts Melted 8 | . . . . . 8 Heat Transferred 5178 | . . 1353 . . 3825 Parts Sabotaged . | . . . . . . Parts Stolen . | . . . . . . Parts Stripped . | . . . . . . Power Chain Reactions . | . . . . . . Alert | -11 -10 -10 -7 -7 -5 ------- Run | Yrd Mat Sub Rec Scr Fac Peak Influence 2403 | 5 284 . 83 . 2403 Initial 3 | . 3 . . . . Average 585 | 2 99 . 22 . 1043 Maximum Alert Level 5 | . 1 . . . 5 Low Security (%) 47 | 100 85 . 100 . 8 Level 1 17 | . 14 . . . 26 Level 2 . | . . . . . 1 Level 3 13 | . . . . . 25 Level 4 5 | . . . . . 10 Level 5 14 | . . . . . 28 High Security . | . . . . . . Max Security . | . . . . . . Squads Dispatched 19 | . 2 . . . 17 Investigation 3 | . . . . . 3 Extermination 3 | . . . . . 3 Reinforcement 7 | . 2 . . . 5 Assault 5 | . . . . . 5 Garrison 1 | . . . . . 1 Intercept . | . . . . . . Searches Triggered . | . . . . . . Construction Impeded 1 | . . . . . 1 Haulers Reinforced . | . . . . . . Active Scanning Responses . | . . . . . . Cargo Convoy Interrupts . | . . . . . . Stealth | -11 -10 -10 -7 -7 -5 --------- Run | Yrd Mat Sub Rec Scr Fac Distress Signals 1 | . 1 . . . . Communications Jammed . | . . . . . . Distress Signals . | . . . . . . Times Spotted 117 | . 20 14 4 . 79 Peak Tracking Total 9 | . 6 4 1 . 9 Tactical Retreats 8 | . 2 3 . . 3 Traps | -11 -10 -10 -7 -7 -5 ------- Run | Yrd Mat Sub Rec Scr Fac Traps Triggered 4 | . 2 1 . . 1 Indirectly . | . . . . . . Trap Hack Attempts . | . . . . . . Triggered . | . . . . . . Disarmed . | . . . . . . Reprogrammed . | . . . . . . Reused . | . . . . . . Traps Extracted . | . . . . . . Installed 1 | . . 1 . . . Triggered . | . . . . . . Most Traps Carried 1 | . . 1 . . . Machines | -11 -10 -10 -7 -7 -5 ---------- Run | Yrd Mat Sub Rec Scr Fac Machines Disabled 35 | . . . . . 35 Max in Single Turn 19 | . . . . . 19 Garrison Access 1 | . . . . . 1 Machines Repaired . | . . . . . . Machines Dismantled . | . . . . . . Machines Sabotaged . | . . . . . . Overloaded Fab Kills . | . . . . . . Hacking | -11 -10 -10 -7 -7 -5 --------- Run | Yrd Mat Sub Rec Scr Fac Machines Accessed 25 | . 5 . 8 3 9 Terminals 17 | . 5 . 6 . 6 Fabricators 1 | . . . . . 1 Repair Stations 1 | . . . . . 1 Recycling Units 2 | . . . 2 . . Scanalyzers . | . . . . . . Garrison Access 1 | . . . . . 1 Total Hacks 63 | . 17 . 16 13 17 Successful 38 | . 10 . 9 13 6 Failed 25 | . 7 . 7 . 11 Catastrophic 5 | . . . 2 . 3 Database Lockouts . | . . . . . . Manual 9 | . 6 . 2 . 1 Terminals 42 | . 17 . 14 . 11 Fabricators 3 | . . . . . 3 Repair Stations 2 | . . . . . 2 Recycling Units 2 | . . . 2 . . Scanalyzers . | . . . . . . Garrison Access 1 | . . . . . 1 Terminal Hacks 27 | . 9 . 5 13 . Record 8 | . 1 . . 7 . Part Schematic 1 | . . . 1 . . Robot Schematic 1 | . . . 1 . . Robot Analysis 8 | . 2 . . 6 . Prototype ID Bank 3 | . 2 . 1 . . Emergency Access Points 2 | . 2 . . . . Hauler Manifests 1 | . . . 1 . . Registered Components 1 | . 1 . . . . Zone Layout 2 | . 1 . 1 . . Fabricator Hacks 3 | . . . . . 3 Network Status 1 | . . . . . 1 Load Schematic 1 | . . . . . 1 Build 1 | . . . . . 1 Repair Station Hacks 2 | . . . . . 2 Scan Component 1 | . . . . . 1 Repair 1 | . . . . . 1 Recycling Unit Hacks 2 | . . . 2 . . Report Inventory 2 | . . . 2 . . Scanalyzer . | . . . . . . Garrison Access Hacks . | . . . . . . Unauthorized Hacks 4 | . 1 . 2 . 1 Terminals 3 | . 1 . 2 . . Botnet 3 | . 1 . 2 . . Fabricators . | . . . . . . Repair Stations . | . . . . . . Recycling Units . | . . . . . . Scanalyzers . | . . . . . . Garrison Access 1 | . . . . . 1 Jam 1 | . . . . . 1 Data Cores Recovered 2 | . 1 . . . 1 Used 2 | . 1 . . . 1 Hacking Detections 19 | . 5 . 6 . 8 Full Trace Events 4 | . 1 . 2 . 1 Feedback Events 1 | . . . 1 . . Corruption 1 | . . . 1 . . Feedback Blocked . | . . . . . . Robot Schematics Acquired 1 | . . . 1 . . Robots Built 1 | . . . . . 1 Authchips . | . . . . . . Time 81 | . . . . . 81 Total Robot Build Rating 1 | . . . . . 1 Part Schematics Acquired 1 | . . . 1 . . Parts Built . | . . . . . . Authchips . | . . . . . . Time . | . . . . . . Total Part Build Rating . | . . . . . . Parts Repaired 1 | . . . . . 1 Time 56 | . . . . . 56 Parts Recycled . | . . . . . . Recycled Matter . | . . . . . . Retrieved Matter . | . . . . . . Retrieved Components . | . . . . . . Parts Scanalyzed . | . . . . . . Part Schematics Acquired . | . . . . . . Parts Damaged . | . . . . . . Bothacking | -11 -10 -10 -7 -7 -5 ------------ Run | Yrd Mat Sub Rec Scr Fac Used RIF Installer . | . . . . . . Robots Hacked . | . . . . . . Non-combat . | . . . . . . Combat . | . . . . . . Robot Hacks Applied . | . . . . . . Relay Couplers Released . | . . . . . . Fabnet Peak Effective % . | . . . . . . Robots Rewired 8 | . . . 8 . . Allies Hacked . | . . . . . . Hacks Repelled . | . . . . . . Allies | -11 -10 -10 -7 -7 -5 -------- Run | Yrd Mat Sub Rec Scr Fac Total Allies 10 | . . . 8 1 1 Largest Group 9 | . . . 8 9 8 Highest-Rated Group 180 | . . . 150 180 150 Highest-Rated Ally 32 | . . . 32 32 32 Total Orders . | . . . . . . Ally Attacks 35 | . . . 4 . 31 Total Damage 862 | . . . 93 . 769 Kills 7 | . . . 1 . 6 Allies Corrupted . | . . . . . . Allies Melted . | . . . . . . Intel | -11 -10 -10 -7 -7 -5 ------- Run | Yrd Mat Sub Rec Scr Fac Robot Analysis Total 8 | . 2 . . 6 . Derelict Logs Recovered 7 | . . 3 . 4 . Drone Launches . | . . . . . . Drone Recoveries . | . . . . . . Exploration | -11 -10 -10 -7 -7 -5 ------------- Run | Yrd Mat Sub Rec Scr Fac Turns Passed 8129 | 82 989 2187 762 2015 2094 Spaces Moved 4499 | 42 519 1235 521 1294 888 Core 10 | 8 . . . . 2 Treads 3327 | 34 519 945 . 944 885 Legs . | . . . . . . Wheels 1161 | . . 290 521 350 . Hover 1 | . . . . . 1 Flight . | . . . . . . Fastest Speed 50 | 50 160 110 110 120 50 Average Speed 153 | 139 160 150 117 152 180 Slowest Speed 500 | 160 160 160 120 240 500 Overloaded Moves . | . . . . . . Propulsion Burnouts . | . . . . . . Robots Hopped . | . . . . . . Cave-ins Triggered . | . . . . . . Exploration Rate (%) 56 | 3 78 62 81 89 28 Regions Visited 5 Branch Regions 3 Pre-discovered Areas 4 | . . 2 . 2 . Known Exits Taken . | . . . . . . Unknown Exits Taken 5 | 1 1 1 1 1 . Scrap Searched 16 | . . 12 . 4 . Spaces Dug 3 | . . 1 . . 2 Terrain Destroyed 449 | . . 1 3 . 445 Melee 1 | . . 1 . . . Projectile 134 | . . . 3 . 131 AOE 314 | . . . . . 314 Terrain Rammed . | . . . . . . Walls Destroyed . | . . . . . . Machines Disabled . | . . . . . . Actions | -11 -10 -10 -7 -7 -5 --------- Run | Yrd Mat Sub Rec Scr Fac Total 5222 | 59 593 1397 648 1351 1174 Wait 65 | . . 3 30 7 25 Move 4494 | 41 518 1234 520 1293 888 Hop . | . . . . . . Pick Up 101 | 8 20 23 3 20 27 Fast Attach 16 | . . 2 . 3 11 Attach 51 | 6 4 7 . 4 30 Detach 5 | . . 1 1 2 1 Swap 52 | . 4 21 5 . 22 Drop 72 | . 3 22 5 22 20 Fire 284 | 4 44 79 12 . 145 Melee 7 | . . 2 . . 5 Ram . | . . . . . . Kick . | . . . . . . Crush . | . . . . . . Escape Stasis . | . . . . . . Rewire 74 | . . 2 72 . . Trap 1 | . . 1 . . . Miscellaneous . | . . . . . . Route ------- -11/Scrapyard -10/Materials (discovered 5 exits: [*Mat x2] / [*Min x2] / [*Sub]) -10/Subcaves (discovered 2 exits: [*Mat] / *Rec) -7/Recycling (discovered 2 exits: *Fac / *Scr) -7/Scraptown (discovered 2 exits: *Fac x2) -5/Factory (discovered 1 exit: *Fac) History --------- Turn | Location | Event 7 | -11/Scrapyard | Discovered new exit (range 16) 83 | -11/Scrapyard | Entered Materials 182 | -10/Materials | Discovered new exit (range 15) 312 | -10/Materials | Build established: Mutant 418 | -10/Materials | Discovered new exit (range 8) 437 | -10/Materials | Discovered new exit (range 15) 633 | -10/Materials | Discovered new exit (range 16) 1061 | -10/Materials | Discovered new exit (range 8) 1072 | -10/Materials | Entered Subcaves 1086 | -10/Subcaves | Learned location of Zion (-7) 1086 | -10/Subcaves | Met a Zionite searching for "candidates" 1279 | -10/Subcaves | Discovered new exit (range 4) 1382 | -10/Subcaves | Shifting Twisted Machinery released Shrapnel Trap 1445 | -10/Subcaves | Shifting Twisted Machinery released Sub. Laser 1690 | -10/Subcaves | Core integrity fell below 50% 2191 | -10/Subcaves | Shifting Twisted Machinery released Sub. Machine Gun 2240 | -10/Subcaves | Shifting Twisted Machinery released Sub. Laser 2735 | -10/Subcaves | A swath of the cavern ceiling suddenly collapsed 2885 | -10/Subcaves | Disturbed a concealed Subdweller 2950 | -10/Subcaves | Learned Materials stockpile data 3255 | -10/Subcaves | Discovered new exit (range 2) 3259 | -10/Subcaves | Entered Recycling 3898 | -7/Recycling | Discovered new exit (range 13) 3954 | -7/Recycling | Build established: Commander-Mutant 3968 | -7/Recycling | Scanned before Scraplab entrance 3986 | -7/Recycling | Entered Scraplab 3996 | -7/Recycling | Discovered new exit (range 2) 4021 | -7/Recycling | Entered Scraptown 4021 | -7/Scraptown | Accompanied by 8 allies 4204 | -7/Scraptown | Visited Shadow of the Wyrm 4225 | -7/Scraptown | Visited UFD Registry 4225 | -7/Scraptown | Registered with UFD as "Fluxmachine" 4270 | -7/Scraptown | Visited Red Mages 4315 | -7/Scraptown | Visited Fellowship of the Rings 4352 | -7/Scraptown | Visited Comm Corps 4364 | -7/Scraptown | Visited Symbiants 4393 | -7/Scraptown | Visited The Evicted 4466 | -7/Scraptown | Scanned Subdweller tech in exchange for log data 4473 | -7/Scraptown | Learned location of Armory (-4) 4475 | -7/Scraptown | Learned Factory terminal intel 4480 | -7/Scraptown | Learned Factory stockpile data 4610 | -7/Scraptown | Discovered new exit (range 3) 5108 | -7/Scraptown | Visited Scrapoid Research Area 5152 | -7/Scraptown | Visited Abandonware Association 5164 | -7/Scraptown | Learned abandonware demo "OVRCLOCK.EXE" 5176 | -7/Scraptown | Learned abandonware demo "REVENGE.EXE" 5219 | -7/Scraptown | Visited Analyses Database 5275 | -7/Scraptown | Delivered Scrap Shield to a Scientist 5421 | -7/Scraptown | Visited A0-MCA Data Center 5430 | -7/Scraptown | Given a C rating by A0-MCA 5433 | -7/Scraptown | Found A0-MCA's Component Scanner 5520 | -7/Scraptown | Visited DA-N13 Charitable Foundation 5542 | -7/Scraptown | Visited Botcube Research 5560 | -7/Scraptown | Lrg. Botcube activated 5574 | -7/Scraptown | Visited Derelict Rescue Squad 5584 | -7/Scraptown | Found DRS Beacon 5616 | -7/Scraptown | Visited Science Testing Area 5675 | -7/Scraptown | Visited Modified Component R&D 5876 | -7/Scraptown | Found Lrg. Botcube 5932 | -7/Scraptown | Discovered new exit (range 5) 5996 | -7/Scraptown | Found Scrap Suit 6036 | -7/Scraptown | Entered Factory 6036 | -5/Factory | Accompanied by 8 allies 6036 | -5/Factory | Evolved 10 slots: Power x1, Propulsion x1, Utility x6, Weapon x2 6038 | -5/Factory | Loaded intel: 26 terminal locations 6157 | -5/Factory | Lost 4 allies 6690 | -5/Factory | Build established: Scrapper 6997 | -5/Factory | Repaired Imp. Thermal Shield? 7210 | -5/Factory | Fabricated A-02 Transporter? 7236 | -5/Factory | First assault squad dispatched 7408 | -5/Factory | Destroyed 8 combat bots 7554 | -5/Factory | Lost 4 parts (2n1u1w) 7594 | -5/Factory | Destroyed 9 combat bots 7724 | -5/Factory | Discovered new exit (range 6) 7744 | -5/Factory | Identified exit to Factory 7856 | -5/Factory | Found Imp. Powered Armor 7929 | -5/Factory | Lost 4 parts (2p1u1w) 8004 | -5/Factory | Lost 5 parts (1p1n1u2w) 8006 | -5/Factory | Destroyed 9 combat bots 8073 | -5/Factory | Garrison activated, responded to threat 8103 | -5/Factory | System corruption reached 10% 8113 | -5/Factory | Core integrity fell below 50% 8124 | -5/Factory | Core integrity fell below 20% 8130 | -5/Factory | Destroyed by S-27 Virus with Autogun Last Messages --------------- Arm. Medium Treads destroyed. Imp. Arc Projector destroyed. P-70 Sage destroyed. Arm. Medium Treads destroyed. Lgt. Angular Momentum Engine destroyed. Adv. Cooling System destroyed. Imp. Thermal Shield destroyed. Imp. Shield Generator destroyed. Acquired Mic. Fission Core. K-01 Serf collects debris. System corrupted: Plasma Sword fused. K-01 Serf collects debris. Plasma Sword destroyed. K-01 Serf collects debris. Mic. Fission Core destroyed. Acquired Antigrav System. Antigrav System destroyed. Dropped Lrg. Botcube. K-01 Serf collects debris. Dropped Lrg. Storage Unit. Map ----- +----------------------------------------------------+ | ?????????????????????????????""" #?????? | | ???????????????????????????? %%! #?????? | | ????????????????????????????? =!% %= ##????? | | ?????????????????????????????=%!% #????? | | ?????????????????????????????#% ##???? | | ????????????????????????????? *%| ##??? | | ??????????????????????#+##### ! "#### | | ?????????????????????? # #%% # | | ??????????????????????? # # | | ???????????? ????????? # # % | | ????????????# ????? """"" # # | | ????????????# ???# """""" = | | ????????????# ???# """""" # | | ????????????# ???# """""" ## == | | ????????????# ??# % | | ????????????# ??# ! | | ????????????# ??######## # ### # | | ????????????# ??# # ## # | | ??????????### ### ; #### # | | ??????????# # ## ##### # | | ??????????# # # T | | ??????????# # # | | ??????????# ""s # # """" | | ????????" + T== !%; # """" | | ???????"" # s%* !=;p # """" / | | ???? ; !kx @# # """" | | ????" # # # """" | | ?????? ??# # # ^""""^ | | ??????????########### # """" | | ????????????????????# # | | ????????????????????# # ^ | | ?????????????"T"????# # | | ????????????????????###+######## | | ??????????????????????#????###?# | | ??????????????????????# ####T ## | | ??????????????????????# | | ?????????????????? #### | | ????????????????? ! | | ????????????????? ! ######## | | ????????????????? #???# | | ????????????????? == ## ##### | | ???????????????????"" =! ??# # # | | ????????????????????" ?????# < #? | | ???????????????????? ???????#######== #? | | ????????????????????????????????????## ##?? | | ?????????????????????????????????????#=#??? | | ????????????????????????????????????##%##### | | ????????????????????????????????????##!### | | ????????????????????????????# ######%### | | ???????????????????????? # !!=**% | +----------------------------------------------------+ Best States ------------- Heat Dissipation 85 Coolant Potential 80 Energy Generation 37 Energy Capacity 550 Matter Stores 300 Matter Capacity 300 Sight Range 16 Terrain Scan Range 16 Terrain Scan Density 10 Armor Coverage 625 Resistance: TH 25 Propulsion Shielding 33 Evasion (%) 50 Core Analysis 6 Recoil Reduction 3 Matter Filtering 50 Kinecelleration 30 Item Schematics ----------------- Variable Charge Gun | -7/Recycling | Hacked Robot Schematics ------------------ A-02 Transporter | -7/Recycling | Hacked Fabricated ------------ A-02 Transporter | x1 | -5/Factory Alien Tech Used ----------------- None Achievements -------------- None Challenges ------------ None Game ------ Seed FluxElectronSpoofer Manual? 0 Play Time 01:41:23 Cumulative 152.6 hours Start 2024.08.16 @ 00:08:43 End 2024.08.16 @ 02:31:30 Sessions 3 Manual Loads 0 Difficulty Rogue Special Mode None Game No. 144 Rogue 135 Adventurer 9 Explorer 0 Win Type - Total 0 Types 0/0/0/0/0/0/0/0/0 Lore% 61 Gallery% 63 Achievement% 51 Wizard Run 0 Options --------- Layout 1 ASCII 0 Keyboard 0 Movement Numpad Keybinds 0 Fullscreen 1 Font 24/Smallcaps Map View 50x35 Zoom Use 0% Tactical HUD 0 Map Filters NONE Filters NONE Steam 1 RUN: bc332c21-e38c-4c6c-8ad9-8cabf754947b